bitfinex/quotes_BTCUSD_20251114
["timestamp","ask_amount","ask_price","bid_price","bid_amount"]
[1763139807214,4.994,97010.0,97001.0,0.324]
[1763139807648,4.994,97010.0,97001.0,0.323]
[1763139807846,4.994,97010.0,97002.0,0.001]
[1763139808454,4.994,97010.0,97001.0,0.323]
[1763139808678,4.994,97010.0,97001.0,0.324]
[1763139808998,4.994,97010.0,97002.0,0.001]
[1763139809411,4.994,97010.0,97001.0,0.324]
[1763139809613,4.994,97010.0,97001.0,0.325]
[1763139809814,4.994,97010.0,97001.0,0.323]
[1763139810344,4.994,97010.0,97002.0,0.001]
[1763139810968,4.994,97010.0,97003.0,0.04341874]
[1763139811185,4.994,97010.0,97005.0,0.36641874]
[1763139812180,4.994,97010.0,97005.0,0.04441874]
[1763139812581,4.994,97010.0,97003.0,0.04341874]
[1763139812765,4.994,97010.0,97005.0,0.001]
[1763139813006,0.06724,97009.0,97005.0,0.001]
[1763139813211,0.06724,97009.0,97005.0,0.002]
[1763139813641,0.06724,97009.0,97002.0,0.04341874]
[1763139813843,0.06724,97009.0,97005.0,0.001]
[1763139814135,0.06724,97009.0,97005.0,0.002]
[1763139814581,0.06724,97009.0,97005.0,0.001]
[1763139815950,0.06724,97009.0,97002.0,0.001]
[1763139816114,0.06724,97009.0,97000.0,0.2]
[1763139816349,0.06724,97009.0,97005.0,0.002]
[1763139816557,0.06724,97009.0,97005.0,0.001]
[1763139816907,0.06724,97009.0,97006.0,0.1498]
[1763139821066,0.02053,97007.0,97006.0,0.1498]
[1763139821926,0.06724,97009.0,97006.0,0.1498]
[1763139822680,0.06724,97009.0,96997.0,0.36313762]
[1763139823020,0.001,97007.0,96997.0,0.36313762]
[1763139823223,0.06724,97009.0,96997.0,0.36313762]
[1763139823421,0.0156,97006.0,96992.0,0.323]
[1763139823639,0.06724,97009.0,96996.0,0.36313762]
[1763139823787,0.06724,97009.0,97000.0,0.4]
[1763139823989,0.06724,97009.0,97001.0,0.02061834]
[1763139823990,0.06824,97009.0,97001.0,0.02061834]
[1763139824200,0.06824,97009.0,97000.0,0.4]
[1763139824201,0.06824,97009.0,97002.0,0.02061813]
[1763139824409,0.06824,97009.0,97003.0,0.02061791]
[1763139824610,0.06824,97009.0,97004.0,0.0206177]
[1763139824787,0.06824,97009.0,97005.0,0.02061749]
[1763139825018,0.06824,97009.0,97006.0,0.02061728]
[1763139825355,0.06724,97009.0,97007.0,0.02061706]
[1763139825571,0.06724,97009.0,97000.0,0.2]
[1763139825728,0.06724,97009.0,97001.0,0.01537539]
[1763139825930,0.06724,97009.0,97000.0,0.2]
[1763139826553,0.06724,97009.0,97001.0,0.01537539]
[1763139826713,0.06724,97009.0,97001.0,0.33837539]
[1763139827388,0.06724,97009.0,97002.0,0.04341874]
[1763139827602,0.06724,97009.0,97004.0,0.04341874]
[1763139827909,0.06724,97009.0,97005.0,0.01537401]
[1763139828793,0.06724,97009.0,97008.0,0.04341874]
[1763139829121,0.06724,97009.0,97008.0,1.22208253]
[1763139829292,0.06724,97009.0,97008.0,0.36641874]
[1763139830080,0.06724,97009.0,97008.0,0.36741874]
[1763139830650,0.06724,97009.0,97008.0,0.36841874]
[1763139830857,0.06724,97009.0,97008.0,0.63195974]
[1763139831687,4.994,97010.0,97009.0,0.806743]
[1763139831688,4.1442,97010.0,97009.0,0.806743]
[1763139831867,4.1412168,97010.0,97009.0,0.85016174]
[1763139832102,4.1412168,97010.0,97009.0,0.48544874]
[1763139832288,4.1412168,97010.0,97009.0,0.36641874]
[1763139832692,4.1412168,97010.0,97009.0,0.04341874]
[1763139832905,4.1412168,97010.0,97009.0,0.04441874]
[1763139833111,4.1412168,97010.0,97009.0,0.50296074]
[1763139833641,4.1412168,97010.0,97009.0,0.36841874]
[1763139834855,4.1412168,97010.0,97009.0,0.002]
[1763139835054,4.1412168,97010.0,97009.0,0.1518]
[1763139835506,4.1412168,97010.0,97009.0,0.002]
[1763139835631,4.1412168,97010.0,97009.0,0.001]
[1763139835632,4.1617468,97010.0,97009.0,0.001]
[1763139836041,4.1617468,97010.0,96990.0,0.60763532]
[1763139836042,4.1412168,97010.0,97002.0,0.323]
[1763139836243,4.1412168,97010.0,97007.0,0.323]
[1763139836244,0.06724,97009.0,97007.0,0.323]
[1763139836516,0.06724,97009.0,97000.0,1.00763532]
[1763139836517,0.06724,97009.0,97008.0,0.04341874]
[1763139838557,0.06724,97009.0,97008.0,0.04553874]
[1763139838757,0.06724,97009.0,97008.0,0.04653874]
[1763139838997,0.06724,97009.0,97008.0,0.002]
[1763139839773,0.06724,97009.0,97008.0,0.001]
[1763139840027,0.06724,97009.0,97008.0,0.00212]
[1763139840332,0.06724,97009.0,97008.0,0.00312]
[1763139840458,0.06724,97009.0,97008.0,0.002]
[1763139840897,0.09138,97009.0,97008.0,0.001]
[1763139841113,0.06724,97009.0,97008.0,0.001]
[1763139841260,0.06724,97009.0,97001.0,0.00112]
[1763139841457,4.1412168,97010.0,97008.0,0.00112]
[1763139841663,4.1412168,97010.0,97005.0,0.323]
[1763139841870,0.06724,97009.0,97006.0,0.01537348]
[1763139842111,0.06724,97009.0,97006.0,0.01649348]
[1763139842320,0.06724,97009.0,97007.0,0.00112]
[1763139842694,0.06724,97009.0,97007.0,0.01649313]
[1763139843138,0.06724,97009.0,97008.0,0.00112]
[1763139843552,0.06724,97009.0,97008.0,0.01649279]
[1763139843722,0.06724,97009.0,97008.0,0.04341874]
[1763139843923,0.06724,97009.0,97007.0,0.04341874]
[1763139844125,4.1412168,97010.0,97007.0,0.04341874]
[1763139844345,4.1412168,97010.0,96970.0,0.08770075]
[1763139844346,4.1412168,97010.0,97001.0,0.04341874]
[1763139844561,4.1412168,97010.0,97004.0,0.940719]
[1763139844730,4.1412168,97010.0,97008.0,0.04341874]
[1763139845128,4.1412168,97010.0,97001.0,0.5]
[1763139845129,4.1412168,97010.0,97002.0,0.04341874]
[1763139845330,4.1412168,97010.0,97006.0,0.04341874]
[1763139845531,3.8347868,97010.0,97007.0,1.368989]
[1763139845756,3.8347868,97010.0,97009.0,2.15424074]
[1763139846275,3.8347868,97010.0,97009.0,1.94041474]
[1763139846429,3.8347868,97010.0,97009.0,0.73611674]
[1763139846630,3.8347868,97010.0,97009.0,0.72344174]
[1763139847086,3.83322163,97010.0,97009.0,0.72344174]
[1763139847380,3.82567084,97010.0,97009.0,0.90390194]
[1763139847536,3.82567084,97010.0,97009.0,0.88326194]
[1763139847733,3.82567084,97010.0,97009.0,0.7300112]
[1763139848015,3.82567084,97010.0,97009.0,0.7041562]
[1763139848206,3.82567084,97010.0,97009.0,0.74657494]
[1763139848409,3.82567084,97010.0,97009.0,0.69147494]
[1763139848635,3.82567084,97010.0,97009.0,0.52923894]
[1763139848773,3.82567084,97010.0,97009.0,0.63981974]
[1763139849173,3.82567084,97010.0,97009.0,0.62914274]
[1763139849384,3.82567084,97010.0,97009.0,0.62614274]
[1763139849603,3.82567084,97010.0,97009.0,0.62814274]
[1763139850209,3.82567084,97010.0,97009.0,0.62618774]
[1763139850440,3.82567084,97010.0,97009.0,0.66843374]
[1763139850799,3.82567084,97010.0,97009.0,0.73567374]
[1763139851014,3.82567084,97010.0,97009.0,0.73267374]
[1763139851181,3.82567084,97010.0,97009.0,0.73467374]
[1763139851381,3.82567084,97010.0,97009.0,0.73567374]
[1763139851602,3.82567084,97010.0,97009.0,0.84427374]
[1763139851814,3.67587084,97010.0,97009.0,0.69247374]
[1763139852003,3.67587084,97010.0,97009.0,0.69447374]
[1763139852204,3.67587084,97010.0,97009.0,0.69347374]
[1763139852650,3.67587084,97010.0,97009.0,0.69147374]
[1763139853201,3.67587084,97010.0,97009.0,0.51563374]
[1763139853421,3.67587084,97010.0,97009.0,0.149215]
[1763139853639,3.67587084,97010.0,97000.0,1.00763532]
[1763139853640,3.67587084,97010.0,97001.0,0.69959]
[1763139853859,3.67587084,97010.0,97009.0,0.00503]
[1763139854056,3.76670084,97010.0,96999.0,0.00403]
[1763139854281,3.76670084,97010.0,97009.0,0.004]
[1763139854514,3.67587084,97010.0,97009.0,0.004]
[1763139854718,3.67587084,97010.0,97000.0,0.80763532]
[1763139854876,0.0672,97009.0,97001.0,0.323]
[1763139855079,3.67587084,97010.0,97001.0,0.323]
[1763139855463,3.67687084,97010.0,97001.0,0.323]
[1763139855715,3.67687084,97010.0,97006.0,0.323]
[1763139855914,3.67687084,97010.0,97008.0,0.36641874]
[1763139856140,3.67687084,97010.0,97009.0,2.36641874]
[1763139856749,3.67587084,97010.0,97009.0,2.36641874]
[1763139857595,3.67587084,97010.0,97009.0,2.07813574]
[1763139857799,3.67587084,97010.0,97009.0,2.08013574]
[1763139858405,3.67587084,97010.0,97009.0,0.50945374]
[1763139858786,3.67587084,97010.0,97009.0,0.50845374]
[1763139859185,3.67587084,97010.0,97009.0,0.51045374]
[1763139859900,3.67587084,97010.0,97009.0,0.50845374]
[1763139860174,3.67587084,97010.0,97009.0,0.51045374]
[1763139860378,3.67587084,97010.0,97009.0,0.50845374]
[1763139860787,3.67587084,97010.0,97009.0,0.65825374]
[1763139861024,3.67587084,97010.0,97009.0,0.66025374]
[1763139861204,3.67587084,97010.0,97009.0,0.65625374]
[1763139861384,3.67587084,97010.0,97009.0,0.65825374]
[1763139861594,3.67587084,97010.0,97009.0,0.51045374]
[1763139861800,3.67587084,97010.0,97009.0,0.50845374]
[1763139862001,3.67587084,97010.0,97009.0,0.50645374]
[1763139862206,3.67587084,97010.0,97009.0,0.57565374]
[1763139862416,3.67587084,97010.0,97009.0,0.72545374]
[1763139863035,3.67552084,97010.0,97009.0,0.57565374]
[1763139863244,3.67552084,97010.0,97009.0,0.97765374]
[1763139863476,3.67552084,97010.0,97009.0,0.97365374]
[1763139863666,3.67552084,97010.0,97009.0,0.97565374]
[1763139863867,3.67552084,97010.0,97009.0,0.97765374]
[1763139864314,3.65206993,97010.0,97009.0,0.97565374]
[1763139864667,3.65206993,97010.0,97009.0,0.97765374]
[1763139864885,3.62114856,97010.0,97009.0,0.97765374]
[1763139865088,3.59022719,97010.0,97009.0,0.97765374]
[1763139865299,3.55931551,97010.0,97009.0,0.97565374]
[1763139865491,3.52840383,97010.0,97009.0,0.97565374]
[1763139865673,3.49649308,97010.0,97009.0,0.98567394]
[1763139865874,3.46499334,97010.0,97009.0,0.98567394]
[1763139866063,3.46499334,97010.0,97009.0,0.98367394]
[1763139866496,3.46499334,97010.0,97009.0,0.98667394]
[1763139866747,3.46229719,97010.0,97009.0,0.98967394]
[1763139866952,3.43138551,97010.0,97009.0,0.98967394]
[1763139867363,3.43138551,97010.0,97009.0,0.92247394]
[1763139867599,3.43138551,97010.0,97009.0,0.98967394]
[1763139868244,3.43138551,97010.0,97009.0,0.98667394]
[1763139868581,3.43138551,97010.0,97009.0,0.98967394]
[1763139869624,3.43138551,97010.0,97009.0,0.98667394]
[1763139869832,3.43138551,97010.0,97009.0,0.98367394]
[1763139870065,3.43138551,97010.0,97009.0,0.98667394]
[1763139870618,3.43138551,97010.0,97009.0,0.98567394]
[1763139870821,3.43138551,97010.0,97009.0,0.98367394]
[1763139871019,3.43138551,97010.0,97009.0,0.98667394]
[1763139871218,3.43138551,97010.0,97009.0,0.1560552]
[1763139871468,3.43138551,97010.0,97009.0,0.1500552]
[1763139871892,3.43138551,97010.0,97009.0,0.0130202]
[1763139872345,3.43138551,97010.0,97009.0,0.003]
[1763139872858,3.43138551,97010.0,97009.0,0.006]
[1763139873058,3.43138551,97010.0,97009.0,0.003]
[1763139873299,3.43138551,97010.0,97009.0,0.002]
[1763139873502,3.43138551,97010.0,97001.0,0.323]
[1763139873816,3.43138551,97010.0,97009.0,0.001]
[1763139874383,3.43138551,97010.0,96991.0,0.323]
[1763139874610,3.43138551,97010.0,97000.0,0.2]
[1763139874808,3.43138551,97010.0,97001.0,0.001]
[1763139876048,3.43138551,97010.0,96994.0,0.36641874]
[1763139876263,3.43138551,97010.0,96996.0,0.36641874]
[1763139876911,3.43138551,97010.0,97000.0,0.2]
[1763139877125,3.43138551,97010.0,97001.0,0.001]
[1763139877642,3.43138551,97010.0,96993.0,0.323]
[1763139877859,3.43138551,97010.0,96996.0,0.04441874]
[1763139878354,3.43138551,97010.0,96996.0,0.001]
[1763139879098,3.43138551,97010.0,96991.0,0.36641874]
[1763139879346,0.0672,97009.0,97001.0,0.323]
[1763139879573,0.0672,97009.0,97001.0,0.324]
[1763139879832,0.0672,97009.0,97001.0,0.323]
[1763139880314,0.0672,97009.0,97000.0,0.2]
[1763139880548,0.0672,97009.0,97001.0,0.323]
[1763139881022,0.0672,97009.0,97001.0,0.324]
[1763139883249,0.0672,97009.0,97001.0,0.001]
[1763139886803,0.06724,97008.0,97001.0,0.324]
[1763139887806,3.43138551,97010.0,97001.0,0.324]
[1763139887807,3.43138551,97010.0,97003.0,0.323]
[1763139888017,0.06724,97007.0,97003.0,0.323]
[1763139888753,0.06724,97007.0,97004.0,0.04341874]
[1763139889199,0.06724,97007.0,97006.0,0.73057874]
[1763139889401,0.06724,97007.0,97006.0,0.69138274]
[1763139890314,0.06724,97007.0,97006.0,0.57393474]
[1763139890895,3.43138551,97010.0,97008.0,0.36641874]
[1763139891095,3.43138551,97010.0,97009.0,1.35810874]
[1763139892348,3.4079326,97010.0,97009.0,1.35810874]
[1763139892711,3.4079326,97010.0,97009.0,1.36010874]
[1763139892915,3.4079326,97010.0,97009.0,1.35910874]
[1763139893118,3.4079326,97010.0,97009.0,1.35810874]
[1763139893341,3.4079326,97010.0,97009.0,1.36010874]
[1763139893548,3.4079326,97010.0,97009.0,1.36210874]
[1763139893751,3.4079326,97010.0,97009.0,1.76210874]
[1763139897220,3.4079326,97010.0,97009.0,1.82930874]
[1763139901449,3.4079326,97010.0,97009.0,1.30995894]
[1763139901450,3.3844822,97010.0,97009.0,1.30995894]
[1763139901634,3.3844822,97010.0,97009.0,0.1456542]
[1763139902004,3.3844822,97010.0,97009.0,0.05743894]
[1763139902239,3.3844822,97010.0,97009.0,0.0140202]
[1763139902439,3.3844822,97010.0,97009.0,0.0120202]
[1763139902646,3.3844822,97010.0,97009.0,0.4444282]
[1763139902900,3.3844822,97010.0,97009.0,0.0110202]
[1763139903054,3.3844822,97010.0,97009.0,0.04441874]
[1763139903495,3.3844822,97010.0,97009.0,0.36741874]
[1763139903696,3.3844822,97010.0,97009.0,0.001]
[1763139904068,3.3844822,97010.0,97000.0,0.56252765]
[1763139904272,3.3844822,97010.0,97009.0,0.002]
[1763139904474,3.4516822,97010.0,97009.0,0.002]
[1763139904670,3.4516822,97010.0,97000.0,0.2]
[1763139904671,3.4516822,97010.0,97001.0,0.323]
[1763139904955,3.4516822,97010.0,97009.0,0.002]
[1763139905203,3.4516822,97010.0,97009.0,0.001]
[1763139905405,3.4516822,97010.0,97001.0,0.323]
[1763139905785,3.4516822,97010.0,97001.0,0.324]
[1763139906334,3.4516822,97010.0,97001.0,0.001]
[1763139906555,0.02331,97002.0,97001.0,0.001]
[1763139906842,0.09051,97002.0,97001.0,0.001]
[1763139907242,3.3844822,97010.0,96991.0,0.323]
[1763139907421,0.0672,97009.0,96991.0,0.323]
[1763139908015,0.0672,97009.0,97001.0,0.001]
[1763139908238,0.001,97002.0,97001.0,0.001]
[1763139908457,0.0672,97002.0,96991.0,0.323]
[1763139908820,0.0672,97002.0,96981.0,0.36641874]
[1763139909017,0.0182,97001.0,96983.0,0.36641874]
[1763139909539,0.0182,97001.0,96980.0,0.76252765]
[1763139909540,0.0182,97001.0,96991.0,0.323]
[1763139911128,3.3844822,97010.0,96992.0,0.04341874]
[1763139911327,0.0672,97009.0,97001.0,0.323]
[1763139912572,0.0672,97009.0,96991.0,0.36641874]
[1763139913586,0.0672,97009.0,96991.0,0.323]
[1763139913905,0.0672,97009.0,97001.0,0.323]
[1763139915044,0.0672,97009.0,96991.0,0.323]
[1763139915606,0.09166949,97009.0,96991.0,0.323]
[1763139915982,0.02368274,97008.0,96991.0,0.323]
[1763139916301,0.02212649,97007.0,96991.0,0.323]
[1763139916502,0.02212649,97007.0,96990.0,0.56252765]
[1763139916503,0.02212649,97007.0,97001.0,0.323]
[1763139916701,0.0672,97009.0,97001.0,0.323]
[1763139917283,0.02577107,97008.0,97001.0,0.323]
[1763139918046,0.02577107,97008.0,96991.0,0.323]
[1763139918261,0.06023107,97008.0,97000.0,0.01]
[1763139918658,0.04337,97001.0,97000.0,0.01]
[1763139918907,0.11057,97001.0,96991.0,0.323]
[1763139919208,0.02517,96992.0,96990.0,0.01]
[1763139919441,0.0672,96991.0,96990.0,0.01]
[1763139919556,0.0672,96991.0,96986.0,0.5]
[1763139919557,0.11057,96991.0,96986.0,0.5]
[1763139919756,0.11057,96991.0,96990.0,0.01]
[1763139919757,0.0182,96991.0,96990.0,0.01]
[1763139919961,0.0854,96991.0,96990.0,0.01]
[1763139920164,0.0854,96991.0,96986.0,0.5]
[1763139920165,0.11057,96991.0,96986.0,0.5]
[1763139920417,0.02517,96987.0,96986.0,0.5]
[1763139921622,0.02617,96987.0,96986.0,0.30585157]
[1763139922324,0.02617,96987.0,96980.0,0.01]
[1763139922505,0.03446,96986.0,96980.0,0.01]
[1763139922713,0.02517,96981.0,96980.0,0.01]
[1763139923508,0.0182,96991.0,96980.0,0.01]
[1763139923708,3.74700985,97010.0,96981.0,0.323]
[1763139923709,0.001,96986.0,96981.0,0.323]
[1763139923931,3.3844822,97010.0,96981.0,0.323]
[1763139923932,0.06724,96985.0,96981.0,0.323]
[1763139924529,0.06724,96985.0,96983.0,0.323]
[1763139924742,0.06724,96985.0,96982.0,0.117654]
[1763139924930,0.06724,96985.0,96981.0,0.36641874]
[1763139925433,0.06724,96985.0,96981.0,0.323]
[1763139926165,0.06724,96985.0,96981.0,0.001]
[1763139926389,0.06724,96985.0,96981.0,0.324]
[1763139926649,0.06724,96985.0,96981.0,0.323]
[1763139926879,0.06724,96985.0,96982.0,0.04341874]
[1763139927542,0.06724,96985.0,96981.0,0.36741874]
[1763139927757,3.3844822,97010.0,97001.0,0.323]
[1763139927984,0.06724,97009.0,97001.0,0.323]
[1763139929340,3.3844822,97010.0,97001.0,0.323]
[1763139929518,0.06724,97009.0,97002.0,0.04341874]
[1763139929960,0.06824,97009.0,97002.0,0.04341874]
[1763139930169,0.06587379,97009.0,97002.0,0.04341874]
[1763139930822,0.06587379,97009.0,97001.0,0.323]
[1763139931697,0.09164459,97009.0,97001.0,0.323]
[1763139931950,0.09164459,97009.0,96992.0,0.04341874]
[1763139932157,0.09164459,97009.0,97001.0,0.323]
[1763139932532,0.02577107,97008.0,97001.0,0.323]
[1763139932896,0.02577107,97008.0,97000.0,0.01]
[1763139932897,0.02403,97002.0,97000.0,0.01]
[1763139933140,0.13440293,97001.0,97000.0,0.01]
[1763139933558,0.10863,97001.0,97000.0,0.01]
[1763139933849,3.3844822,97010.0,96991.0,0.323]
[1763139934058,0.0672,97009.0,97000.0,0.2]
[1763139934491,0.001,97001.0,96991.0,0.323]
[1763139934693,0.0672,97000.0,96991.0,0.323]
[1763139935075,0.0672,97000.0,96990.0,0.0195207]
[1763139935271,0.0672,97000.0,96981.0,0.323]
[1763139935272,0.02403,96991.0,96981.0,0.323]
[1763139935509,0.0672,96990.0,96981.0,0.323]
[1763139935711,0.01736,96982.0,96970.0,0.2]
[1763139935912,0.0672,96981.0,96980.0,0.01]
[1763139936072,0.09123,96981.0,96980.0,0.01]
[1763139937169,0.0672,96981.0,96980.0,0.01]
[1763139937571,0.09123,96981.0,96980.0,0.01]
[1763139938682,0.09123,96981.0,96980.0,0.011]
[1763139938902,0.09123,96981.0,96980.0,0.001]
[1763139939048,0.09123,96981.0,96975.0,0.0002408]
[1763139939253,0.02403,96976.0,96975.0,0.0002408]
[1763139939862,0.0672,96981.0,96980.0,0.01]
[1763139940364,0.09123,96981.0,96975.0,0.0002408]
[1763139940612,0.0672,96981.0,96980.0,0.01]
[1763139941045,0.09123,96981.0,96980.0,0.01]
[1763139941695,0.0672,96981.0,96980.0,0.01]
[1763139942329,0.09123,96981.0,96980.0,0.01]
[1763139943380,0.01736,96982.0,96975.0,0.0002408]
[1763139943636,0.06724,96981.0,96975.0,0.0002408]
[1763139943848,0.06724,96981.0,96980.0,0.01]
[1763139944568,0.06724,96981.0,96975.0,0.0002408]
[1763139945403,0.01736,97005.0,96990.0,0.01]
[1763139945578,0.090211,97000.0,96990.0,0.0195207]
[1763139945831,0.09301319,97000.0,96990.0,0.2195207]
[1763139946255,0.09301319,97000.0,96990.0,0.0195207]
[1763139946472,0.02577346,96999.0,96981.0,0.323]
[1763139946822,0.08620024,97000.0,96990.0,0.0195207]
[1763139947025,0.08520024,97000.0,96990.0,0.0195207]
[1763139947950,0.08520024,97000.0,96991.0,0.323]
[1763139948198,3.3844822,97010.0,97001.0,0.323]
[1763139948350,0.08890582,97009.0,97001.0,0.323]
[1763139948795,0.01736,97002.0,97001.0,0.323]
[1763139949214,0.08890582,97009.0,96991.0,0.323]
[1763139949431,0.01437374,97008.0,97001.0,0.323]
[1763139949626,0.06724,97009.0,97001.0,0.323]
[1763139949627,0.01997324,97007.0,97001.0,0.323]
[1763139950027,0.001,97002.0,97001.0,0.323]
[1763139950801,0.01736,97003.0,96991.0,0.323]
[1763139951012,0.02403,97002.0,96991.0,0.323]
[1763139951219,0.06724,97001.0,96991.0,0.323]
[1763139952731,0.06724,97001.0,96988.0,0.04341874]
[1763139952930,0.06724,97001.0,96991.0,0.323]
[1763139953564,0.02577319,97000.0,96991.0,0.323]
[1763139954200,0.02577319,97000.0,96990.0,0.0195207]
[1763139956501,0.01736,96991.0,96981.0,0.323]
[1763139956701,0.0672,96990.0,96979.0,0.03093371]
[1763139956832,0.0672,96990.0,96980.0,0.0195207]
[1763139957041,0.03743,96989.0,96980.0,0.01]
[1763139957333,0.04139,96981.0,96980.0,0.01]
[1763139957652,0.10859,96981.0,96980.0,0.01]
[1763139963051,0.10859,96981.0,96971.0,0.323]
[1763139963764,0.10859,96981.0,96980.0,0.01]
[1763139964937,0.04139,96981.0,96980.0,0.01]
[1763139965185,0.10859,96981.0,96980.0,0.01]
[1763139965385,0.10859,96981.0,96971.0,0.323]
[1763139965642,0.02202,96976.0,96971.0,0.323]
[1763139966199,0.03399,97000.0,96981.0,0.323]
[1763139966428,0.0672,96999.0,96981.0,0.323]
[1763139966632,0.09297346,96999.0,96981.0,0.323]
[1763139966869,0.03399,96998.0,96981.0,0.323]
[1763139967084,0.02577399,96997.0,96981.0,0.323]
[1763139967509,0.03399,96996.0,96981.0,0.323]
[1763139967723,0.02577452,96995.0,96981.0,0.323]
[1763139967959,0.02577452,96995.0,96963.0,0.323]
[1763139967960,0.02202,96982.0,96963.0,0.323]
[1763139968166,0.01759,96976.0,96967.0,0.0309377]
[1763139968421,0.01759,96976.0,96971.0,0.323]
[1763139968593,0.0672,96981.0,96971.0,0.323]
[1763139968993,0.02577851,96980.0,96971.0,0.323]
[1763139970065,0.02185,96976.0,96971.0,0.323]
[1763139971185,0.02185,96976.0,96950.0,0.0004]
[1763139971186,0.04762957,96976.0,96950.0,0.0004]
[1763139971404,0.02185,96951.0,96950.0,0.0104]
[1763139971612,0.08905,96951.0,96950.0,0.0104]
[1763139972274,0.08905,96951.0,96950.0,0.01106909]
[1763139973206,0.08905,96951.0,96950.0,0.00106909]
[1763139973520,0.08905,96951.0,96950.0,0.01106909]
[1763139977362,0.01624,96957.0,96950.0,0.01106909]
[1763139977544,0.06724,96956.0,96950.0,0.0004]
[1763139978481,0.02185,96951.0,96950.0,0.0004]
[1763139978677,0.02185,96951.0,96950.0,0.0104]
[1763139978904,0.02185,96951.0,96950.0,0.01106909]
[1763139980702,0.01624,96960.0,96950.0,0.02058979]
[1763139980925,0.06724,96959.0,96950.0,0.0004]
[1763139981132,0.01624,96966.0,96950.0,0.2004]
[1763139981338,0.06724,96965.0,96950.0,0.0004]
[1763139981583,0.01624,96973.0,96960.0,0.2]
[1763139981762,0.08438063,96972.0,96952.0,0.04341874]
[1763139981958,0.01624,96973.0,96952.0,0.04341874]
[1763139981959,0.01665898,96971.0,96952.0,0.04341874]
[1763139982163,0.01759,96984.0,96970.0,0.2]
[1763139982358,0.01759,96984.0,96970.0,0.80821693]
[1763139982359,0.06724,96983.0,96970.0,0.80821693]
[1763139982586,0.03605,96998.0,96972.0,0.04341874]
[1763139982969,0.06724,96991.0,96980.0,0.2]
[1763139983585,0.02577585,96990.0,96980.0,0.2195207]
[1763139984284,0.001,96984.0,96972.0,0.04441874]
[1763139984501,0.01765349,96990.0,96972.0,0.04441874]
[1763139984723,0.01765349,96990.0,96980.0,0.0195207]
[1763139984971,0.03605,96989.0,96971.0,0.323]
[1763139985178,0.02577638,96988.0,96980.0,0.01]
[1763139985628,0.02185,96981.0,96980.0,0.01]
[1763139985856,0.08909,96981.0,96980.0,0.01]
[1763139986325,0.08909,96981.0,96959.0,0.00042818]
[1763139986543,0.02185,96962.0,96960.0,0.01]
[1763139986756,0.06724,96961.0,96960.0,0.01]
[1763139986985,0.08909,96961.0,96960.0,0.01]
[1763139987202,0.08909,96961.0,96950.0,0.2004]
[1763139987203,0.08909,96961.0,96951.0,0.323]
[1763139987413,0.02508239,96960.0,96951.0,0.323]
[1763139987849,0.01594806,96960.0,96951.0,0.323]
[1763139988294,0.02185,96952.0,96950.0,0.0004]
[1763139988529,0.0672,96951.0,96950.0,0.0004]
[1763139991679,0.04202329,96962.0,96960.0,0.01]
[1763139991933,0.06724,96961.0,96951.0,0.323]
[1763139992354,0.06724,96961.0,96960.0,0.00040141]
[1763139994310,0.08962,96961.0,96960.0,0.01040141]
[1763139994868,0.09062,96961.0,96960.0,0.01040141]
[1763139995778,0.09062,96961.0,96960.0,0.00040141]
[1763139995779,0.001,96961.0,96960.0,0.00040141]
[1763139995988,0.0682,96961.0,96960.0,0.00040141]
[1763139996825,0.01593,96971.0,96960.0,0.00040141]
[1763139997028,0.0672,96970.0,96951.0,0.323]
[1763139997152,0.12691116,96970.0,96966.0,0.00024083]
[1763139997568,0.02238,96967.0,96966.0,0.00024083]
[1763139997969,0.0672,96970.0,96966.0,0.00024083]
[1763139998269,0.02238,96967.0,96966.0,0.00024083]
[1763139998969,0.02338,96967.0,96966.0,0.00024083]
[1763139999190,0.02238,96967.0,96966.0,0.00024083]
[1763139999560,0.03833906,96967.0,96966.0,0.00024083]
[1763139999773,0.04816196,96967.0,96966.0,0.00024083]
[1763140000505,0.04916196,96967.0,96966.0,0.00024083]
[1763140000710,0.04686824,96967.0,96966.0,0.00024083]
[1763140001143,0.04486824,96967.0,96966.0,0.00024083]
[1763140001369,0.11206824,96967.0,96966.0,0.00024083]
[1763140001575,0.11306824,96967.0,96966.0,0.00024083]
[1763140001973,0.09058,96967.0,96966.0,0.00024083]
[1763140002338,0.09158,96967.0,96966.0,0.00024083]
[1763140002556,0.09058,96967.0,96966.0,0.00024083]
[1763140003162,0.0682,96967.0,96966.0,0.00024083]
[1763140003410,0.001,96967.0,96966.0,0.51645957]
[1763140003608,0.001,96967.0,96966.0,0.77840957]
[1763140003828,0.002,96967.0,96966.0,0.77840957]
[1763140004036,0.001,96967.0,96966.0,0.77840957]
[1763140004236,0.00132,96999.0,96966.0,0.77840957]
[1763140004237,0.00132,96999.0,96991.0,0.36641874]
[1763140004629,0.0672,97008.0,97001.0,0.323]
[1763140005792,0.0672,97008.0,97002.0,0.04341874]
[1763140006833,3.3844822,97010.0,97002.0,0.04341874]
[1763140007240,3.3844822,97010.0,97000.0,0.4195207]
[1763140007784,3.3844822,97010.0,97002.0,0.002]
[1763140007994,3.3844822,97010.0,97002.0,0.001]
[1763140008234,3.3844822,97010.0,97000.0,0.4195207]
[1763140008439,3.3844822,97010.0,97000.0,0.4215207]
[1763140008779,3.3844822,97010.0,97000.0,0.4205207]
[1763140009188,3.3844822,97010.0,97001.0,0.36641874]
[1763140009398,3.3844822,97010.0,97001.0,0.323]
[1763140009758,3.3844822,97010.0,97000.0,0.4205207]
[1763140009960,3.3844822,97010.0,97002.0,0.001]
[1763140010159,3.3844822,97010.0,97000.0,0.4195207]
[1763140010587,0.02238,97001.0,96990.0,1.00821693]
[1763140010788,0.02238,97001.0,97000.0,0.001]
[1763140010789,0.08958,97001.0,97000.0,0.001]
[1763140011035,0.0672,97001.0,97000.0,0.001]